Cogmind - Beta 13 *** ADVENTURER MODE // 2024.05.30 @ 19:59:25 Player: kurtis Result: Destroyed by G-34 Mercenary with Small Laser Performance ------------- Evolutions (0) 0 Regions Visited (1) 200 Robots Destroyed (16) 80 Value Destroyed (209) 209 Prototype IDs (0) 0 Alien Tech Used (0) 0 Bonus (0) 0 TOTAL SCORE: 489 Bonus ------- None Cogmind --------- Core Integrity 0/250 Matter 213/300 Energy 100/100 System Corruption 0% Temperature Cool (6) Movement Core (50) Location -10/Materials Parts ------- > --- POWER (1) -------- (None) > --- PROPULSION (2) --- (None) > --- UTILITY (2) ------ (None) > --- WEAPON (2) ------- (None) > --- INVENTORY (5) ---- Improved Ion Engine Wheel Large Battery (200) Light Assault Rifle Light Assault Rifle Peak State ------------ > --- POWER ------------ Improved Ion Engine > --- PROPULSION ------- Wheel Wheel > --- UTILITY ---------- Large Battery Large Matter Pod > --- WEAPON ----------- Shotgun Shotgun > --- INVENTORY -------- Light Assault Rifle Light Assault Rifle [Rating: 10] Favorites ----------- Power Improved Ion Engine Engine Improved Ion Engine Propulsion Wheel Wheel Wheel Utility Medium Matter Pod Storage Medium Matter Pod Weapon Shotgun Energy Gun Small Laser Energy Cannon Beam Cannon Ballistic Gun Shotgun Launcher Grenade Launcher Build | -11 -10 ------- Run | Yrd Mat Slots Evolved . | . . Power . | . . Propulsion . | . . Utility . | . . Weapon . | . . Parts Attached 20 | 6 14 Power 2 | 1 1 Engine 2 | 1 1 Core . | . . Reactor . | . . Propulsion 3 | 2 1 Treads . | . . Leg . | . . Wheel 3 | 2 1 Hover . | . . Flight . | . . Utility 4 | . 4 Device . | . . Storage 4 | . 4 Processor . | . . Hackware . | . . Protection . | . . Artifact . | . . Weapon 11 | 3 8 Energy Gun 1 | 1 . Energy Cannon 1 | . 1 Ballistic Gun 8 | 2 6 Ballistic Cannon . | . . Launcher 1 | . 1 Special Weapon . | . . Impact Weapon . | . . Slashing Weapon . | . . Piercing Weapon . | . . Special Melee Weapon . | . . Unidentified Prototypes . | . . Parts Lost 1 | . 1 Power . | . . Propulsion 1 | . 1 Utility . | . . Weapon . | . . Highest Loss Streak 1 | . 1 To Critical Strikes . | . . Average Slot Usage (%) 80 | . 80 Engine 11 | . 11 Wheel 22 | . 22 Storage 20 | . 20 Energy Cannon 6 | . 6 Ballistic Gun 11 | . 11 Launcher 5 | . 5 Naked Turns 78 | . 78 Heaviest Build 36 | 5 36 Greatest Support 20 | 20 20 Greatest Overweight (x) 1 | . 1 Average Overweight (x) . | . . Largest Inventory Capacity 15 | 5 15 Average Capacity 7 | 5 8 Most Carried 6 | 1 6 Average Carried 2 | . 3 Final Capacity 5 | 5 5 Final Carried 5 | 1 5 Class Distribution -------------------- 100% | Mutant Dominant Class ---------------- Mutant | -10/Materials Resources | -11 -10 ----------- Run | Yrd Mat Matter Collected 443 | 265 178 Remotely . | . . Salvage Created 381 | 59 322 Parts 32 | 1 31 Haulers Intercepted . | . . Recyclers Shooed 2 | . 2 Parts Field Recycled . | . . Retrieved Matter . | . . Parts Self-Destructed . | . . Prevented . | . . Kills | -11 -10 ------- Run | Yrd Mat Combat Hostiles Destroyed 9 | 1 8 Guns 1 | 1 . Cannons 4 | . 4 AOE 4 | . 4 Classes Destroyed 6 | 2 4 Worker 1 | 1 . Builder 4 | . 4 Tunneler 1 | . 1 Recycler 1 | . 1 Swarmer 6 | . 6 Grunt 3 | 1 2 Best Kill Streak 6 | 1 6 Combat Bots Only 6 | 1 6 Max Kills in Single Turn 2 | 1 2 Gunslinging . | . . Exploded 2 | . 2 Melee . | . . Uniques/NPCs Destroyed . | . . Combat | -11 -10 -------- Run | Yrd Mat Hostile Shots Fired 88 | 4 84 Missed 24 | . 24 Damage Taken 498 | 35 463 Core 251 | 8 243 Absorbed by Shields . | . . Ignored by Resistances 162 | 12 150 Core Remaining (%) 96 | 96 . Volleys Fired 34 | 5 29 Largest 2 | 2 2 Hottest 90 | 60 90 Shots Fired 53 | 9 44 Gun 29 | 9 20 Cannon 19 | . 19 Launcher 5 | . 5 Special . | . . Kinetic 25 | 5 20 Thermal 23 | 4 19 Explosive 5 | . 5 Electromagnetic . | . . Robot Hit Streak 7 | 5 7 Robot Miss Streak 3 | 1 3 Penetration Max . | . . Secondary Targets . | . . Shots Hit Robots 34 | 8 26 Core Hits 23 | 3 20 Critical Kills . | . . Critical Parts Destroyed 1 | . 1 Critical Strikes 1 | . 1 Destroy 1 | . 1 Melee Attacks . | . . Impact . | . . Slashing . | . . Piercing . | . . Sneak Attacks . | . . Combat Hostiles . | . . Follow-up Attacks . | . . Damage Inflicted 717 | 77 640 Guns 296 | 77 219 Cannons 158 | . 158 Explosions 263 | . 263 Melee . | . . Ramming . | . . Kinetic 261 | 42 219 Thermal 193 | 35 158 Explosive 263 | . 263 Electromagnetic . | . . Impact . | . . Slashing . | . . Piercing . | . . Highest Corruption . | . . Average Corruption . | . . Corruption Purged . | . . Corruption Blocked . | . . Overload Shots . | . . Overflow Damage . | . . Projectiles . | . . Explosions . | . . Melee . | . . Knockbacks . | . . Impact . | . . Kinetic . | . . Secondary . | . . Self-Inflicted Damage . | . . Shots . | . . Rammed . | . . Targets Rammed . | . . Kicked . | . . Crushed . | . . Highest Temperature 138 | 32 138 Average Temperature 53 | 17 59 Received Heat Transfer 216 | 24 192 Siege Activations . | . . Robots Corrupted . | . . Combat Hostiles . | . . Parts Fried . | . . Impact Corruptions . | . . Robots Melted . | . . Combat Hostiles . | . . Parts Melted . | . . Heat Transferred 408 | 75 333 Parts Sabotaged . | . . Parts Stolen . | . . Parts Stripped . | . . Power Chain Reactions . | . . Alert | -11 -10 ------- Run | Yrd Mat Peak Influence 257 | 25 257 Initial 13 | . 13 Average 100 | 6 119 Maximum Alert Level 1 | . 1 Low Security (%) 75 | 100 70 Level 1 24 | . 29 Level 2 . | . . Level 3 . | . . Level 4 . | . . Level 5 . | . . High Security . | . . Max Security . | . . Squads Dispatched 1 | . 1 Investigation 1 | . 1 Extermination . | . . Reinforcement . | . . Assault . | . . Garrison . | . . Intercept . | . . Searches Triggered . | . . Construction Impeded . | . . Haulers Reinforced . | . . Active Scanning Responses . | . . Cargo Convoy Interrupts . | . . Stealth | -11 -10 --------- Run | Yrd Mat Distress Signals . | . . Communications Jammed . | . . Distress Signals . | . . Times Spotted 13 | 1 12 Peak Tracking Total 4 | 1 4 Tactical Retreats . | . . Traps | -11 -10 ------- Run | Yrd Mat Traps Triggered 2 | . 2 Indirectly . | . . Trap Hack Attempts . | . . Triggered . | . . Disarmed . | . . Reprogrammed . | . . Reused . | . . Traps Extracted . | . . Installed . | . . Triggered . | . . Machines | -11 -10 ---------- Run | Yrd Mat Machines Disabled . | . . Max in Single Turn . | . . Machines Repaired . | . . Machines Dismantled . | . . Machines Sabotaged . | . . Overloaded Fab Kills . | . . Hacking | -11 -10 --------- Run | Yrd Mat Machines Accessed 1 | . 1 Terminals 1 | . 1 Fabricators . | . . Repair Stations . | . . Recycling Units . | . . Scanalyzers . | . . Garrison Access . | . . Total Hacks 1 | . 1 Successful 1 | . 1 Failed . | . . Catastrophic . | . . Database Lockouts . | . . Manual . | . . Terminals 1 | . 1 Fabricators . | . . Repair Stations . | . . Recycling Units . | . . Scanalyzers . | . . Garrison Access . | . . Terminal Hacks 1 | . 1 Zone Layout 1 | . 1 Fabricator Hacks . | . . Repair Station Hacks . | . . Recycling Unit Hacks . | . . Scanalyzer . | . . Garrison Access Hacks . | . . Unauthorized Hacks . | . . Terminals . | . . Fabricators . | . . Repair Stations . | . . Recycling Units . | . . Scanalyzers . | . . Garrison Access . | . . Data Cores Recovered . | . . Used . | . . Hacking Detections . | . . Full Trace Events . | . . Feedback Events . | . . Feedback Blocked . | . . Robot Schematics Acquired . | . . Robots Built . | . . Authchips . | . . Time . | . . Total Robot Build Rating . | . . Part Schematics Acquired . | . . Parts Built . | . . Authchips . | . . Time . | . . Total Part Build Rating . | . . Parts Repaired . | . . Time . | . . Parts Recycled . | . . Recycled Matter . | . . Retrieved Matter . | . . Retrieved Components . | . . Parts Scanalyzed . | . . Part Schematics Acquired . | . . Parts Damaged . | . . Bothacking | -11 -10 ------------ Run | Yrd Mat Used RIF Installer . | . . Robots Hacked . | . . Non-combat . | . . Combat . | . . Robot Hacks Applied . | . . Relay Couplers Released . | . . Fabnet Peak Effective % . | . . Robots Rewired . | . . Allies Hacked . | . . Hacks Repelled . | . . Allies | -11 -10 -------- Run | Yrd Mat Total Allies . | . . Largest Group . | . . Highest-Rated Group . | . . Highest-Rated Ally . | . . Total Orders . | . . Ally Attacks . | . . Total Damage . | . . Kills . | . . Allies Corrupted . | . . Allies Melted . | . . Intel | -11 -10 ------- Run | Yrd Mat Robot Analysis Total . | . . Derelict Logs Recovered . | . . Drone Launches . | . . Drone Recoveries . | . . Exploration | -11 -10 ------------- Run | Yrd Mat Turns Passed 699 | 117 582 Spaces Moved 479 | 96 383 Core 17 | 17 . Treads . | . . Legs . | . . Wheels 462 | 79 383 Hover . | . . Flight . | . . Fastest Speed 50 | 50 80 Average Speed 84 | 74 86 Slowest Speed 95 | 80 95 Overloaded Moves . | . . Propulsion Burnouts . | . . Robots Hopped . | . . Cave-ins Triggered . | . . Exploration Rate (%) 35 | 6 65 Regions Visited 1 Branch Regions . Pre-discovered Areas . | . . Known Exits Taken . | . . Unknown Exits Taken 1 | 1 . Scrap Searched . | . . Spaces Dug . | . . Terrain Destroyed 28 | . 28 Melee . | . . Projectile . | . . AOE 28 | . 28 Terrain Rammed . | . . Walls Destroyed . | . . Machines Disabled . | . . Actions | -11 -10 --------- Run | Yrd Mat Total 720 | 131 589 Wait 168 | 23 145 Move 478 | 95 383 Hop . | . . Pick Up 5 | 1 4 Fast Attach 9 | 5 4 Attach 1 | 1 . Detach 4 | 1 3 Swap 10 | . 10 Drop 11 | . 11 Fire 34 | 5 29 Melee . | . . Ram . | . . Kick . | . . Crush . | . . Escape Stasis . | . . Rewire . | . . Trap . | . . Miscellaneous . | . . Route ------- -11/Scrapyard -10/Materials (discovered 4 exits: [*Mat x2] / [*Min x2]) History --------- Turn | Location | Event 2 | -11/Scrapyard | Met Revision 17 87 | -11/Scrapyard | Discovered new exit (range 8) 118 | -11/Scrapyard | Entered Materials 123 | -10/Materials | Discovered new exit (range 16) 315 | -10/Materials | Build established: Mutant 322 | -10/Materials | Discovered new exit (range 3) 525 | -10/Materials | Discovered new exit (range 10) 584 | -10/Materials | Discovered new exit (range 15) 655 | -10/Materials | Core integrity fell below 50% 684 | -10/Materials | Core integrity fell below 20% 700 | -10/Materials | Destroyed by G-34 Mercenary with Small Laser Last Messages --------------- Acquired 82 matter. EXIT=FOUND Acquired Wheel. R-06 Scavenger inserts Structural Scanner into recycling unit. R-06 Scavenger inserts Wheel into recycling unit. EXIT=FOUND Triggered Alarm Trap. An alarm sounds. ALERT: Alarm triggered, dispatching investigation squad. Dropped Lrg. Matter Pod. Dropped Shotgun. Dropped Wheel. R-06 Scavenger collects Wheel. R-06 Scavenger collects Shotgun. R-06 Scavenger collects Lrg. Matter Pod. R-06 Scavenger collects Shotgun. [Achievement: First Step to Greatness] Map ----- +----------------------------------------------------+ | ######## #### ############?????????? | | ##????###+####+##???????????????????? | | #?????# #???????????????????? | | #?????# "T" #?#?????????????????? | | #?????# """ # ???????????????? | | ####??# """ + < ????????????? | | """#??# """ # #???????????? | | "#???? # #???????????? | | !"#??? # ??????????? | | ""#??? # ??????????? | | |"#???########## ??????????? | | "#????????????# """ ""?????????? | | """#????????????# """ """ #?????? | | ####?????######## """ """ +?????? | | ########## #?????? | | #?????? | | """ """ #?????? | | """ """ #?????? | | ##+####### """ """ #?????? | | ## #?????? | | ! """ ## #?????? | | "Y" ## g #?????? | | ## #?????? | | ## #?????? | | ################+## #?????? | | ???????????????? # r@#####?????? | | ???????????????? # #?????????? | | ???????????????? # #?????????? | | ???????????????? #### ?????????? | | ????????????????? #??# ????????? | | ????????????????? #??# ???????? | | ?????????????????##??# ??????? | | ?????????????????????## ??????? | | ??????????????????????# ]]! #?????? | | ??????????????????????+ ]= #?????? | | ??????????????????????# ]= #?????? | | ??????????????????????# #?????? | | ??????????????????????# #?????? | | ??????????????????????# ???????? | | ??????????????????????###+## ???????? | | ????????????????????????????????????? | | ????????????????????????????????????? | | ????????????????????????????????????? | | ????????????????????????????????????? | | ????????????????????????????????????? | | ????????????????????????????????????? | | ????????????????????????????????????? | | | | | | | +----------------------------------------------------+ Best States ------------- Heat Dissipation 25 Energy Generation 12 Energy Capacity 465 Matter Stores 300 Matter Capacity 450 Sight Range 16 Terrain Scan Density 10 Resistance: KI 20 Resistance: TH 20 Resistance: EX 20 Resistance: EM 20 Resistance: I 20 Resistance: S 20 Resistance: P 20 Evasion (%) 50 Offensive Hacking 10 Item Schematics ----------------- None Robot Schematics ------------------ None Fabricated ------------ Nothing Alien Tech Used ----------------- None Achievements -------------- First Step to Greatness Challenges ------------ None Game ------ Seed AntimatterGlidesysJammer Manual? 0 Play Time 00:30:54 Cumulative 0.4 hours Start 2024.05.28 @ 19:04:07 End 2024.05.30 @ 19:59:25 Sessions 3 Manual Loads 0 Difficulty Adventurer Special Mode None Game No. 1 Rogue 0 Adventurer 1 Explorer 0 Win Type - Total 0 Types 0/0/0/0/0/0/0/0/0 Lore% 0 Gallery% 1 Achievement% 0 Wizard Run 0 Options --------- Layout 1 ASCII 1 Keyboard 0 Movement Vi Keybinds 0 Fullscreen 1 Font 24/X11 Map View 50x35 Zoom Use 2% Tactical HUD 0 Map Filters NONE Filters NONE Steam 1 RUN: 98ba89f4-7e83-46eb-a7d5-0c864348491b